bitfinex-derivatives/quotes_ETHF0:USTF0_20240817
["timestamp","ask_amount","ask_price","bid_price","bid_amount"]
[1723913609204,1.42953,2622.9,2622.7,1.4296]
[1723913609410,0.5633618,2623.0,2622.7,1.42961]
[1723913609713,1.42959,2622.8,2622.6,1.42965]
[1723913609907,0.5633618,2623.0,2622.6,1.42965]
[1723913610113,4.3761618,2623.0,2622.5,4.63751]
[1723913610302,4.3761618,2623.0,2622.7,1.42962]
[1723913610303,1.42955,2622.9,2622.7,1.42962]
[1723913610500,0.5633618,2623.0,2622.6,1.42964]
[1723913610704,0.5633618,2623.0,2622.7,1.42963]
[1723913610900,0.5633618,2623.0,2622.5,3.2078]
[1723913611118,1.42955,2622.9,2622.6,1.42963]
[1723913611519,1.42957,2622.8,2622.6,1.42963]
[1723913611910,1.9929318,2622.8,2622.7,1.42963]
[1723913612109,3.8128,2622.7,2621.3,1.43035]
[1723913612306,1.42979,2622.4,2622.2,1.42988]
[1723913612514,1.42979,2622.4,2622.1,1.42993]
[1723913612711,4.63741,2622.8,2622.5,1.42972]
[1723913613008,1.42971,2622.6,2622.3,1.42982]
[1723913613215,1.42971,2622.6,2622.3,1.43334773]
[1723913613409,1.98415918,2622.6,2622.3,1.43334773]
[1723913613611,0.55444918,2622.6,2622.4,1.42977]
[1723913613815,0.55444918,2622.6,2622.5,1.42973]
[1723913614912,0.0057157,2622.7,2622.6,1.42968]
[1723913615310,0.0057157,2622.7,2622.6,5.24248]
[1723913616608,0.56016488,2622.7,2622.6,1.42968]
[1723913617115,0.0057157,2622.7,2622.6,1.42968]
[1723913617516,0.56016488,2622.7,2622.5,1.4297]
[1723913617915,0.56016488,2622.7,2622.5,1.42973]
[1723913618117,0.56016488,2622.7,2622.4,1.42974]
[1723913618312,0.56016488,2622.7,2622.3,0.00352773]
[1723913618313,0.56016488,2622.7,2622.5,1.42973]
[1723913618517,1.98981488,2622.7,2622.3,0.00352773]
[1723913618711,0.56016488,2622.7,2622.4,1.42975]
[1723913619021,1.98979488,2622.7,2622.3,1.43333773]
[1723913619207,1.98979488,2622.7,2622.4,1.42977]
[1723913619607,0.56016488,2622.7,2622.5,1.42971]
[1723913619808,0.56016488,2622.7,2622.6,1.42968]
[1723913620526,0.0057157,2622.7,2622.6,10.24248]
[1723913621222,0.0057157,2622.7,2622.6,11.24407652]
[1723913621412,0.0057157,2622.7,2622.6,10.24248]
[1723913621919,0.0057157,2622.7,2622.6,6.22678718]
[1723913622623,0.0057157,2622.7,2622.6,6.22734976]
[1723913623014,0.0057157,2622.7,2622.6,5.24248]
[1723913623208,0.0057157,2622.7,2622.6,7.14877625]
[1723913623717,0.0057157,2622.7,2622.6,6.67216]
[1723913623923,0.0057157,2622.7,2622.6,15.67803525]
[1723913624114,0.0057157,2622.7,2622.6,14.53102957]
[1723913624518,0.0057157,2622.7,2622.6,16.00878119]
[1723913624818,0.0057157,2622.7,2622.6,15.41043743]
[1723913625018,0.0057157,2622.7,2622.6,19.4746955]
[1723913625213,0.00479278,2623.4,2622.6,19.4746955]
[1723913625214,0.00479278,2623.4,2623.3,2.8586]
[1723913625415,0.00479278,2623.4,2623.3,11.78434159]
[1723913625619,0.00479278,2623.4,2623.3,17.38249808]
[1723913625821,0.3717,2624.4,2624.2,1.42881]
[1723913626040,0.92614918,2624.4,2624.3,1.42875]
[1723913626227,0.92614918,2624.4,2623.8,5.62072905]
[1723913626522,0.92614918,2624.4,2623.8,5.62644475]
[1723913626523,0.55444918,2624.4,2623.8,5.62644475]
[1723913626718,0.55768441,2624.4,2624.2,1.42879]
[1723913626920,0.56340011,2624.4,2623.8,4.20184174]
[1723913627317,0.56340011,2624.4,2624.3,1.42875]
[1723913627620,0.56340011,2624.4,2623.8,4.20184174]
[1723913627819,1.99211011,2624.4,2624.1,1.42883]
[1723913628011,0.56340011,2624.4,2623.8,3.21790269]
[1723913628220,1.42892,2624.0,2623.8,3.21790269]
[1723913628428,1.42892,2624.0,2623.8,0.01010269]
[1723913628613,0.55444918,2624.0,2623.8,0.01010269]
[1723913628814,1.98340918,2624.0,2623.8,0.01010269]
[1723913629021,0.55444918,2624.0,2623.8,0.01010269]
[1723913629410,0.55444918,2624.0,2623.9,1.42897]
[1723913630019,0.55444918,2624.0,2623.8,0.01010269]
[1723913630324,0.55444918,2624.0,2623.9,1.42897]
[1723913630718,1.42876,2624.3,2624.0,1.42889]
[1723913630919,0.55444918,2624.3,2624.0,1.42887]
[1723913631222,0.55444918,2624.3,2623.8,0.01010269]
[1723913631223,1.98323918,2624.3,2623.9,1.42895]
[1723913631624,1.42882,2624.2,2623.8,1.43908269]
[1723913631813,0.55444918,2624.3,2623.8,1.43908269]
[1723913632016,1.42881,2624.2,2623.8,1.43908269]
[1723913632418,0.55444918,2624.2,2623.8,1.43912269]
[1723913632625,1.98329918,2624.2,2623.8,1.43912269]
[1723913633023,1.42886,2624.1,2623.8,0.01010269]
[1723913633426,1.98330918,2624.1,2623.8,0.01010269]
[1723913633931,0.55444918,2624.1,2623.9,1.42897]
[1723913634126,0.55444918,2624.1,2623.9,1.42895]
[1723913634428,0.55444918,2624.1,2623.9,1.42897]
[1723913634629,0.55444918,2624.1,2623.9,1.42895]
[1723913636231,0.55444918,2624.1,2624.0,1.42892]
[1723913637031,0.55444918,2624.1,2624.0,4.63672]
[1723913640936,0.55444918,2624.1,2623.9,1.42892]
[1723913641231,0.55444918,2624.1,2623.8,0.01010269]
[1723913641430,1.42897,2623.9,2623.8,0.01010269]
[1723913641630,1.42919,2623.5,2623.4,3.2078]
[1723913641827,1.42908,2623.7,2623.2,1.42933]
[1723913642127,1.42908,2623.7,2623.0,8.11304447]
[1723913642128,1.42937,2623.2,2623.0,8.11304447]
[1723913642333,3.2078,2623.3,2622.8,3.2078]
[1723913642629,1.42947,2623.0,2622.8,3.21055737]
[1723913642832,1.42947,2623.0,2622.8,3.21627307]
[1723913643035,1.98391918,2623.0,2622.8,3.21627307]
[1723913643428,1.98391918,2623.0,2622.8,0.00847307]
[1723913643429,1.42952,2622.9,2622.8,0.00847307]
[1723913643629,5.24232,2622.9,2622.8,0.00847307]
[1723913643829,5.79676918,2622.9,2622.8,0.00847307]
[1723913644133,10.79676918,2622.9,2622.8,0.00847307]
[1723913644526,12.22628918,2622.9,2622.8,0.00847307]
[1723913644737,12.58588918,2622.9,2622.8,0.00847307]
[1723913645138,1.42976,2622.5,2622.2,1.42988]
[1723913645341,0.3429,2622.4,2622.2,1.42988]
[1723913645737,0.89734918,2622.4,2622.2,1.42988]
[1723913646038,0.89734918,2622.4,2622.1,1.42991]
[1723913646226,0.900332,2622.4,2622.2,1.42988]
[1723913646540,0.900332,2622.4,2622.1,1.43347434]
[1723913646732,0.900332,2622.4,2622.2,1.42988]
[1723913647634,0.900332,2622.4,2622.1,1.43348434]
[1723913647635,3.8136,2622.3,2622.1,1.43348434]
[1723913647945,6.143732,2622.4,2622.1,1.43348434]
[1723913648142,2.330132,2622.4,2622.1,1.43348434]
[1723913648340,1.42985,2622.3,2622.1,0.00355434]
[1723913648737,1.98429918,2622.3,2622.1,0.00355434]
[1723913649139,0.55444918,2622.3,2622.1,0.00355434]
[1723913649743,1.4299,2622.2,2622.1,0.00355434]
[1723913650143,5.79794918,2622.2,2622.1,0.00355434]
[1723913651541,0.34588282,2622.4,2622.1,3.81715434]
[1723913651542,0.00298282,2622.4,2622.1,3.81715434]
[1723913651747,0.00298282,2622.4,2622.3,1.42984]
[1723913652138,1.42984,2622.3,2622.1,0.00355434]
[1723913652340,0.557432,2622.4,2622.3,1.42984]
[1723913652848,0.557432,2622.4,2622.1,1.43346434]
[1723913653033,0.00298282,2622.4,2622.3,1.42984]
[1723913653542,0.00298282,2622.4,2622.3,5.24344]
[1723913655450,0.00298282,2622.4,2622.3,3.8136]
[1723913655648,0.00298282,2622.4,2622.3,5.24344]
[1723913657142,0.557432,2622.4,2622.2,3.5517]
[1723913658154,1.987222,2622.4,2622.2,3.5517]
[1723913658354,1.987222,2622.4,2622.2,3.2078]
[1723913658355,0.557432,2622.4,2622.2,3.2078]
[1723913659549,0.557432,2622.4,2622.3,1.42984]
[1723913659550,0.00298282,2622.4,2622.3,1.42984]
[1723913659952,0.00298282,2622.4,2622.3,5.24344]
[1723913664056,0.557432,2622.4,2622.3,1.42984]
[1723913665352,0.00298282,2622.4,2622.3,1.42984]
[1723913666052,0.00014739,2622.4,2622.3,1.42984]
[1723913667753,0.00014739,2622.4,2622.3,6.67328]
[1723913667947,0.00014739,2622.4,2622.3,5.24344]
[1723913668255,0.00014739,2622.4,2622.3,1.42984]
[1723913673154,0.55459657,2622.4,2622.3,1.42984]
[1723913678754,0.00014739,2622.4,2622.3,2.85968]
[1723913681261,0.00014739,2622.4,2622.3,3.84361905]
[1723913681661,0.00014739,2622.4,2622.3,2.85968]
[1723913682460,0.00014739,2622.4,2622.3,1.42984]
[1723913682764,0.00014739,2622.4,2622.3,2.41377905]
[1723913683266,0.00014739,2622.4,2622.3,5.62157905]
[1723913683564,0.00014739,2622.4,2622.3,7.97409754]
[1723913683868,0.00014739,2622.4,2622.3,8.57313932]
[1723913684061,0.00014739,2622.4,2622.3,7.97409754]
[1723913684463,0.00014739,2622.4,2622.3,10.04897103]
[1723913685169,0.00014739,2622.4,2622.3,9.45000612]
[1723913685459,0.00014739,2622.4,2622.3,8.57307914]
[1723913685764,0.00014739,2622.4,2622.3,7.14325151]
[1723913686453,0.00014739,2622.4,2622.3,7.14323598]
[1723913686659,0.00014739,2622.4,2622.3,6.54425754]
[1723913686962,0.00014739,2622.4,2622.3,7.14322903]
[1723913687160,0.00014739,2622.4,2622.3,6.54430922]
[1723913687364,0.00014739,2622.4,2622.3,7.14330975]
[1723913687561,0.00014739,2622.4,2622.3,9.11248422]
[1723913687863,0.00014739,2622.4,2622.3,8.51348369]
[1723913688071,0.00014739,2622.4,2622.3,9.11246503]
[1723913688568,0.00014739,2622.4,2622.3,7.20579581]
[1723913688763,0.00014739,2622.4,2622.3,9.11246721]
[1723913688963,0.00014739,2622.4,2622.3,10.06782049]
[1723913689365,0.00014739,2622.4,2622.3,6.60681447]
[1723913689564,0.00014739,2622.4,2622.3,8.1611574]
[1723913690066,0.55459657,2622.4,2622.3,7.20579467]
[1723913690458,0.55459657,2622.4,2622.3,9.11240417]
[1723913691061,0.55459657,2622.4,2622.3,7.68256417]
[1723913691260,0.55459657,2622.4,2622.3,5.7133897]
[1723913691462,0.55459657,2622.4,2622.3,5.71347172]
[1723913691864,0.55459657,2622.4,2622.3,7.14331172]
[1723913692474,0.55459657,2622.4,2622.3,5.23670222]
[1723913692771,0.55459657,2622.4,2622.3,3.80686222]
[1723913693671,0.55459657,2622.4,2622.3,5.23670222]
[1723913696174,0.92159657,2622.4,2622.3,5.23670222]
[1723913696375,0.92159657,2622.4,2622.3,7.14347494]
[1723913697069,0.92159657,2622.4,2622.3,5.71363494]
[1723913697375,6.16498657,2622.4,2622.3,2.50583494]
[1723913697768,4.73519657,2622.4,2622.3,2.50583494]
[1723913698474,0.92159657,2622.4,2622.3,2.50583494]
[1723913698970,4.73519657,2622.4,2622.3,3.93567494]
[1723913699376,0.92159657,2622.4,2622.3,3.93567494]
[1723913699669,0.92159657,2622.4,2622.3,3.93571096]
[1723913700077,0.92159657,2622.4,2622.3,3.93568174]
[1723913700371,0.55459657,2622.4,2622.3,7.14348174]
[1723913700766,0.55459657,2622.4,2622.3,8.09858317]
[1723913701172,0.55459657,2622.4,2622.3,7.49966968]
[1723913701467,0.55459657,2622.4,2622.3,13.89265405]
[1723913701666,0.55459657,2622.4,2622.3,6.87156474]
[1723913702069,0.55459657,2622.4,2622.3,3.93555046]
[1723913703371,0.55459657,2622.4,2622.3,6.87162377]
[1723913703575,0.55459657,2622.4,2622.3,2.50571046]
[1723913703978,4.36819657,2622.4,2622.3,2.50571046]
[1723913705374,0.55459657,2622.4,2622.3,2.50571046]
[1723913705973,0.55459657,2622.4,2622.3,3.93555046]
[1723913706170,0.55459657,2622.4,2622.3,6.87166953]
[1723913706373,0.55459657,2622.4,2622.3,5.31733087]
[1723913706668,0.55459657,2622.4,2622.3,4.89101864]
[1723913707674,0.55459657,2622.4,2622.3,7.82713038]
[1723913707875,0.55459657,2622.4,2622.3,11.03493038]
[1723913708267,0.55459657,2622.4,2622.3,14.84824662]
[1723913708865,0.00014739,2622.4,2622.3,14.84824662]
[1723913709071,0.00014739,2622.4,2622.3,14.29736847]
[1723913710280,0.00014739,2622.4,2622.3,18.11096847]
[1723913710582,0.00014739,2622.4,2622.3,18.11062341]
[1723913710778,0.00014739,2622.4,2622.3,12.39053445]
[1723913710965,4.088,2622.9,2622.8,1.42957]
[1723913711168,0.55444918,2622.9,2622.8,5.42021678]
[1723913711673,0.55444918,2622.9,2622.8,3.93497976]
[1723913711868,0.55905636,2622.9,2622.8,3.93497976]
[1723913712064,0.55905636,2622.9,2622.8,1.90654133]
[1723913712273,0.55905636,2622.9,2622.8,3.93497588]
[1723913712569,3.2078,2624.5,2622.9,5.24232]
[1723913712776,3.2078,2624.5,2624.1,0.98902862]
[1723913712777,1.78381,2624.4,2624.1,0.98902862]
[1723913712970,0.3551,2624.4,2624.2,1.4288]
[1723913713283,2.33824918,2624.4,2624.2,2.41782862]
[1723913713471,2.33824918,2624.4,2624.1,1.42883]
[1723913713672,0.91275012,2624.4,2624.2,1.43179213]
[1723913713878,0.91275012,2624.4,2624.3,1.42875]
[1723913714068,0.55765012,2624.4,2624.3,1.42875]
[1723913714777,0.00320094,2624.4,2624.3,1.42875]
[1723913715073,0.00320094,2624.4,2624.3,4.99435]
[1723913715279,0.00320094,2624.4,2624.3,10.56809143]
[1723913715581,0.00320094,2624.4,2624.3,9.57906281]
[1723913715774,0.00320094,2624.4,2624.3,14.21561281]
[1723913715973,0.00320094,2624.4,2624.3,12.78686281]
[1723913717872,0.55765012,2624.4,2624.3,3.5656]
[1723913718174,4.36805012,2624.4,2624.3,3.2078]
[1723913718375,0.55765012,2624.4,2624.3,4.63655]
[1723913718978,0.00320094,2624.4,2624.3,8.44695]
[1723913719174,0.00320094,2624.4,2624.3,4.63655]
[1723913719486,0.55765012,2624.4,2624.3,4.63655]
[1723913720168,0.00320094,2624.4,2624.3,4.63655]
[1723913720383,0.00320094,2624.4,2624.3,8.44695]
[1723913720676,0.00320094,2624.4,2624.3,9.8757]
[1723913720984,0.00320094,2624.4,2624.3,17.77801844]
[1723913721180,0.0057157,2624.5,2624.4,2.8574]
[1723913721395,0.3703,2625.3,2625.2,1.42826]
[1723913721573,0.55444918,2625.3,2625.2,1.42826]
[1723913721769,9.36324918,2625.3,2624.7,3.2078]
[1723913722077,1.42835,2625.1,2624.8,8.23158833]
[1723913722272,1.43108846,2625.1,2624.8,8.23158833]
[1723913722480,5.79513764,2625.1,2624.8,8.23158833]
[1723913722677,0.55718764,2625.1,2624.7,9.66011833]
[1723913722879,1.98551764,2625.1,2624.7,9.66008833]
[1723913723183,7.0174,2625.0,2624.4,3.2078]
[1723913723489,1.42843,2624.9,2624.5,8.21890186]
[1723913723780,1.42856,2624.7,2624.5,8.21890186]
[1723913724173,0.55444918,2624.7,2624.5,8.21890186]
[1723913724381,1.98299918,2624.7,2624.5,8.21890186]
[1723913724875,5.79339918,2624.7,2624.4,3.2078]
[1723913725078,0.3654,2624.6,2624.4,3.2078]
[1723913725474,0.91984918,2624.6,2624.4,4.63649]
[1723913725669,0.55444918,2624.6,2624.5,1.42864]
[1723913726680,0.55444918,2624.6,2624.5,1.77034]
[1723913727186,1.79727846,2625.1,2624.8,1.42847]
[1723913727478,1.42837,2625.0,2624.6,1.42857]
[1723913727681,1.42849,2624.8,2624.5,1.42862]
[1723913727877,1.4284,2625.0,2624.4,3.2078]
[1723913728070,1.4284,2625.0,2624.7,1.42853]
[1723913728276,1.4284,2625.0,2624.6,1.42856]
[1723913728277,1.42843,2624.9,2624.6,1.42856]
[1723913728469,1.42843,2624.9,2624.5,1.4286]
[1723913728673,0.55444918,2624.9,2624.4,3.2078]
[1723913728875,1.4285,2624.8,2624.6,1.42859]
[1723913729077,0.55444918,2624.9,2624.4,3.2078]
[1723913729387,1.42858,2624.7,2624.4,4.63648]
[1723913729685,1.42863,2624.6,2624.4,3.2078]
[1723913729984,1.42864,2624.5,2624.4,3.2078]
[1723913730371,1.98308918,2624.5,2624.4,3.2078]
[1723913731584,0.55444918,2624.5,2624.4,4.6365]
[1723913732586,1.98309918,2624.5,2624.4,3.2078]
[1723913733179,0.55444918,2624.5,2624.4,3.2078]
[1723913733878,1.98308918,2624.5,2624.4,3.2078]
[1723913734082,2.32728918,2624.5,2624.4,3.2078]
[1723913734381,0.89864918,2624.5,2624.4,3.2078]
[1723913735683,0.89864918,2624.5,2624.3,1.42872]
[1723913736073,0.89864918,2624.5,2624.2,3.21080213]
[1723913736074,0.89864918,2624.5,2624.4,1.4287]
[1723913736681,0.89864918,2624.5,2624.3,1.42873]
[1723913736878,0.89864918,2624.5,2624.4,1.4287]
[1723913738385,0.55444918,2624.5,2624.4,1.4287]
[1723913738686,0.55444918,2624.5,2624.2,3.21080213]
[1723913738883,0.55444918,2624.5,2624.3,1.42873]
[1723913739479,0.55444918,2624.5,2624.2,3.21080213]
[1723913739677,0.55444918,2624.5,2624.3,1.42872]
[1723913740289,1.98309918,2624.5,2624.3,1.42872]
[1723913740484,0.55444918,2624.5,2624.3,1.42872]
[1723913741381,0.55444918,2624.5,2624.4,1.4287]
[1723913741976,0.55444918,2624.5,2624.3,1.42872]
[1723913742886,0.55444918,2624.5,2624.4,1.4287]
[1723913743584,0.55444918,2624.5,2624.3,1.42873]
[1723913743787,2.8575,2624.3,2624.2,0.00300213]
[1723913743990,2.8575,2624.3,2623.7,3.2078]
[1723913743991,1.42906,2623.8,2623.5,1.42913]
[1723913744191,1.42912,2623.7,2623.4,1.77113]
[1723913744376,1.42917,2623.6,2623.4,0.3419]
[1723913744693,1.42912,2623.7,2623.4,1.77112]
[1723913744882,1.42912,2623.7,2623.4,1.77425117]
[1723913745081,1.42916,2623.6,2623.4,0.34503117]
[1723913745386,1.42919,2623.5,2623.4,0.00313117]
[1723913745784,5.78992348,2623.5,2623.4,0.00313117]
[1723913746485,10.78992348,2623.5,2623.4,0.00313117]
[1723913747190,10.78992348,2623.5,2622.9,4.09427222]
[1723913747191,1.42939,2623.2,2622.9,4.09427222]
[1723913747488,1.42945,2623.1,2622.9,2.66478222]
[1723913747785,5.24124,2623.4,2622.9,2.66478222]
[1723913748090,1.42946,2623.0,2622.9,2.66478222]
[1723913748384,1.42946,2623.0,2622.9,2.66939358]
[1723913748590,5.24226,2623.0,2622.9,2.66939358]
[1723913748980,1.77118,2623.2,2622.9,2.66939358]
[1723913749984,0.3418,2623.2,2622.9,4.09888358]
[1723913750182,0.00361596,2623.4,2622.9,2.66939358]
[1723913750481,1.42943,2623.1,2622.9,2.66939358]
[1723913750678,1.42933,2623.3,2622.9,4.09891358]
[1723913751077,1.42935,2623.2,2622.9,4.09891358]
[1723913751489,1.42933,2623.3,2622.9,4.09891358]
[1723913751692,1.80589596,2623.4,2623.0,1.42946]
[1723913751890,1.80590596,2623.4,2623.0,1.42946]
[1723913752088,1.80590596,2623.4,2623.1,1.4294]
[1723913752889,0.37661596,2623.4,2622.9,0.00461136]
[1723913753292,5.61787596,2623.4,2622.9,0.00461136]
[1723913753603,5.61787596,2623.4,2622.9,1.43412136]
[1723913753893,1.42939,2623.2,2622.9,1.43412136]
[1723913755000,1.80587596,2623.4,2623.1,1.42938]
[1723913755499,0.00361596,2623.4,2623.2,1.42932]
[1723913755698,0.00361596,2623.4,2623.3,1.4293]
[1723913756101,0.00361596,2623.4,2623.3,5.2413]
[1723913756802,0.00361596,2623.4,2623.3,5.6103]
[1723913759086,0.00361596,2623.4,2623.3,1.7983]
[1723913759591,0.00361596,2623.4,2623.3,5.6103]
[1723913760297,4.0937157,2623.8,2623.7,1.42908]
[1723913760491,0.0057157,2623.8,2623.7,1.42908]
[1723913760696,0.0057157,2623.8,2623.7,5.60638]
[1723913760897,3.8169157,2623.8,2623.3,0.98902862]
[1723913761119,3.8169157,2623.8,2623.2,3.2078]
[1723913761120,1.4347657,2623.8,2623.5,1.42917]
[1723913761404,1.42909,2623.7,2623.5,9.43304382]
[1723913761592,1.42909,2623.7,2623.5,1.42919]
[1723913761900,5.2403,2623.7,2623.4,1.42922]
[1723913762095,0.00872094,2623.8,2623.2,3.5739]
[1723913762399,1.42919,2623.5,2623.4,7.94151302]
[1723913762604,1.42913,2623.6,2623.2,3.2078]
[1723913762798,0.3643,2623.4,2623.2,3.2078]
[1723913763096,1.79358,2623.4,2623.2,3.2078]
[1723913763507,0.3643,2623.4,2622.9,0.00461136]
[1723913763797,1.79358,2623.4,2623.0,1.42943]
[1723913764006,0.3643,2623.4,2623.1,1.42938]
[1723913764201,0.3643,2623.4,2622.9,1.43411136]
[1723913764393,1.42936,2623.2,2622.9,1.43411136]
[1723913764696,1.42939,2623.2,2622.9,0.00461136]
[1723913765101,1.42939,2623.2,2622.9,1.43412136]
[1723913765599,0.3643,2623.4,2622.9,0.00461136]
[1723913766103,1.42933,2623.3,2622.9,1.43410136]
[1723913766493,1.42938,2623.2,2622.9,1.43411136]
[1723913767000,1.42938,2623.2,2622.9,0.00461136]
[1723913767299,1.42946,2623.0,2622.9,0.00461136]
[1723913767701,10.24226,2623.0,2622.9,0.00461136]
[1723913767901,5.24226,2623.0,2622.9,0.00461136]
[1723913770804,10.24226,2623.0,2622.9,0.00461136]
[1723913771601,11.67172,2623.0,2622.9,0.00461136]
[1723913771803,10.24226,2623.0,2622.9,0.00461136]
[1723913772404,5.24226,2623.0,2622.9,0.00461136]
[1723913774403,0.3648,2623.3,2622.9,1.43410136]
[1723913774606,1.42946,2623.0,2622.9,0.00461136]
[1723913775009,5.24226,2623.0,2622.9,0.00461136]
[1723913775809,5.24226,2623.0,2622.9,1.43413136]
[1723913775810,3.8128,2623.0,2622.9,1.43413136]
[1723913776511,5.24226,2623.0,2622.9,1.43413136]
[1723913776703,5.24226,2623.0,2622.9,0.00461136]
[1723913776898,3.8128,2623.0,2622.9,0.00461136]
[1723913777106,5.24226,2623.0,2622.9,1.43413136]
[1723913777308,1.79357,2623.4,2622.9,0.00461136]
[1723913777610,4.1763,2623.4,2622.9,0.00461136]
[1723913777818,1.4293,2623.3,2622.9,1.43409136]
[1723913778004,4.1763,2623.4,2623.0,1.42946]
[1723913778212,1.42939,2623.2,2623.0,1.42943]
[1723913778426,0.3643,2623.4,2622.9,1.43409136]
[1723913778707,4.6371,2623.3,2622.9,1.43409136]
[1723913778908,1.42946,2623.0,2622.9,0.00461136]
[1723913779410,5.24226,2623.0,2622.9,0.00461136]
[1723913781008,3.2078,2623.3,2622.9,0.00461136]
[1723913781316,1.42941,2623.1,2623.0,1.42943]
[1723913781507,1.42939,2623.2,2623.0,1.42943]
[1723913781708,1.42941,2623.1,2623.0,1.42943]
[1723913782109,5.24141,2623.1,2622.9,1.43410136]
[1723913782304,1.42941,2623.1,2622.9,1.43410136]
[1723913782705,1.42941,2623.1,2623.0,1.42946]
[1723913783107,5.24141,2623.1,2622.9,1.43410136]
[1723913783320,1.42941,2623.1,2622.9,1.43410136]
[1723913783513,1.42941,2623.1,2623.0,1.42946]
[1723913783820,1.42939,2623.2,2623.0,1.42946]
[1723913784312,1.42941,2623.1,2623.0,1.42946]
[1723913785011,1.42941,2623.1,2622.9,1.43408136]
[1723913785207,1.42941,2623.1,2622.9,0.00461136]
[1723913785408,1.42941,2623.1,2623.0,1.42946]
[1723913787015,1.42939,2623.2,2623.1,1.42941]
[1723913788012,3.812,2623.2,2622.9,1.43408136]
[1723913788211,1.4293,2623.3,2622.9,1.43408136]
[1723913788416,1.42946,2623.0,2622.9,1.43408136]
[1723913789918,6.67172,2623.0,2622.9,0.00461136]
[1723913790118,5.24226,2623.0,2622.9,0.00461136]
[1723913794625,6.67172,2623.0,2622.9,0.00461136]
[1723913796618,11.67172,2623.0,2622.9,0.00461136]
[1723913796925,6.67172,2623.0,2622.9,0.00461136]
[1723913798221,11.67172,2623.0,2622.9,0.00461136]
[1723913802219,6.67172,2623.0,2622.9,0.00461136]
[1723913804030,7.76972,2623.0,2622.9,0.00461136]
[1723913805423,9.19918,2623.0,2622.9,0.00461136]
[1723913805627,12.76972,2623.0,2622.9,0.00461136]
[1723913807021,7.76972,2623.0,2622.9,0.00461136]
[1723913808517,3.95692,2623.0,2622.9,0.00461136]
[1723913808724,7.76972,2623.0,2622.9,0.00461136]
[1723913809224,6.34026,2623.0,2622.9,0.00461136]
[1723913812435,2.52746,2623.0,2622.9,1.43412136]
[1723913812928,1.098,2623.0,2622.9,1.43412136]
[1723913814129,1.42946,2623.0,2622.9,1.43412136]
[1723913814330,2.52746,2623.0,2622.9,2.42314998]
[1723913815535,2.52746,2623.0,2622.9,2.77254998]
[1723913817140,1.42946,2623.1,2623.0,1.42946]
[1723913817337,2.52746,2623.1,2623.0,1.42946]
[1723913818436,1.098,2623.1,2623.0,1.42946]
[1723913818836,1.098,2623.1,2622.9,2.77251998]
[1723913819039,1.42946,2623.0,2622.9,2.77251998]
[1723913819539,1.42946,2623.0,2622.9,6.58531998]
[1723913819846,1.42946,2623.0,2622.9,5.59629136]
[1723913820037,2.52744,2623.1,2623.0,1.42946]
[1723913820835,1.098,2623.1,2623.0,1.42946]
[1723913822242,1.098,2623.1,2623.0,2.02783114]
[1723913823242,1.098,2623.1,2623.0,1.42946]
[1723913824948,0.3751,2623.7,2623.0,4.41058475]
[1723913825240,1.42913,2623.6,2623.5,1.42915]
[1723913825449,1.098,2623.6,2623.2,1.42933]
[1723913825638,2.5273,2623.3,2623.2,1.42933]
[1723913826039,1.098,2623.3,2623.2,1.42933]
[1723913826439,2.5273,2623.3,2623.2,1.42933]
[1723913826640,1.42935,2623.2,2622.9,0.35401136]
[1723913826846,1.098,2623.0,2622.9,1.78353136]
[1723913827047,1.098,2623.0,2622.9,2.38214036]
[1723913827549,1.098,2623.0,2622.9,6.19494036]
[1723913827748,2.52746,2623.0,2622.9,0.95262036]
[1723913828052,2.52746,2623.0,2622.9,0.35401136]
[1723913829351,2.52746,2623.0,2622.9,1.34347103]
[1723913829950,2.52746,2623.0,2622.9,2.77299103]
[1723913830451,1.098,2623.0,2622.9,6.19495416]
[1723913830849,1.098,2623.0,2622.9,6.1949138]
[1723913831254,1.098,2623.0,2622.9,6.19494054]
[1723913831546,5.73526,2623.0,2622.9,0.35401136]
[1723913831749,5.73526,2623.0,2622.9,0.00461136]
[1723913832148,2.52746,2623.0,2622.9,0.00461136]
[1723913833853,1.42946,2623.0,2622.9,0.00461136]
[1723913834049,2.52746,2623.0,2622.9,0.00461136]
[1723913848266,1.098,2623.0,2622.9,1.43413136]
[1723913848457,1.098,2623.0,2622.9,2.42405442]
[1723913848661,2.52746,2623.0,2622.9,2.42405442]
[1723913849362,1.098,2623.0,2622.9,2.42405442]
[1723913849868,2.52746,2623.0,2622.9,2.42405442]
[1723913852067,2.52746,2623.0,2622.9,1.43413136]
[1723913852365,2.52746,2623.0,2622.9,1.43412136]
[1723913852569,2.52746,2623.0,2622.9,0.00461136]
[1723913852866,2.52746,2623.0,2622.9,1.43412136]
[1723913853559,5.73526,2623.0,2622.9,0.00461136]
[1723913853761,5.73526,2623.0,2622.9,0.99453442]
[1723913853961,5.73526,2623.0,2622.9,0.00461136]
[1723913854161,5.73526,2623.0,2622.9,1.43413136]
[1723913854369,5.73526,2623.0,2622.9,0.00461136]
[1723913856971,7.16472,2623.0,2622.9,0.00461136]
[1723913857258,10.97752,2623.0,2622.9,0.00461136]
[1723913858260,9.54806,2623.0,2622.9,0.00461136]
[1723913858462,2.52746,2623.0,2622.9,0.00461136]
[1723913859976,2.52746,2623.0,2622.9,1.43413136]
[1723913860161,2.52746,2623.0,2622.9,0.00461136]
[1723913863278,3.95692,2623.0,2622.9,0.00461136]
[1723913863979,7.76972,2623.0,2622.9,0.00461136]
[1723913867784,10.97752,2623.0,2622.9,0.00461136]
[1723913868587,11.32372,2623.0,2622.9,0.00461136]
[1723913869885,10.97752,2623.0,2622.9,0.00461136]
[1723913872501,12.40698,2623.0,2622.9,0.00461136]
[1723913873897,12.40698,2623.0,2622.7,0.0057157]
[1723913873898,2.85914,2622.8,2622.7,0.0057157]
[1723913874091,3.95714,2622.8,2622.7,0.0057157]
[1723913874294,8.11084,2622.8,2622.7,0.0057157]
[1723913874802,8.11084,2622.8,2622.7,0.0089608]
[1723913876596,9.54041,2622.8,2622.7,0.0089608]
[1723913876903,2.52779,2622.4,2622.3,0.3629]
[1723913877801,3.95758,2622.4,2622.3,0.36762848]
[1723913878593,3.95758,2622.4,2622.3,0.00472848]
[1723913879195,7.77118,2622.4,2622.3,0.00472848]
[1723913883102,3.95758,2622.4,2622.3,0.00472848]
[1723913884302,7.77118,2622.4,2622.3,0.00472848]